bitfinex/quotes_SOLUSD_20250806
["timestamp","ask_amount","ask_price","bid_price","bid_amount"]
[1754520358454,49.19194003,168.41,168.4,0.06]
[1754520359384,45.80389033,168.41,168.4,0.06]
[1754520359563,48.63194003,168.41,168.4,0.76]
[1754520359866,45.24389033,168.41,168.4,0.76]
[1754520360439,45.24389033,168.41,168.4,6.69824228]
[1754520360758,4.00389033,168.41,168.4,6.69824228]
[1754520364155,4.00389033,168.41,168.4,6.98256542]
[1754520364360,4.00389033,168.41,168.4,10.37061512]
[1754520368151,4.00389033,168.41,168.4,6.98256542]
[1754520368351,4.00389033,168.41,168.4,10.37061512]
[1754520387498,4.00389033,168.41,168.4,9.67061512]
[1754520388687,4.00389033,168.41,168.4,10.39061512]
[1754520410008,1e-08,168.41,168.4,10.39061512]
[1754520413605,1e-08,168.41,168.4,7.00256542]
[1754520413810,1e-08,168.41,168.4,10.39061512]
[1754520424511,1e-08,168.41,168.4,53.90979712]
[1754520427526,0.03,168.43,168.4,68.75540282]
[1754520427824,0.03,168.43,168.42,3.67237284]
[1754520428325,0.03,168.43,168.42,10.29990994]
[1754520428719,0.03,168.43,168.42,28.14271494]
[1754520429807,145.93,168.44,168.43,0.28432314]
[1754520430002,145.93,168.44,168.43,4.36237284]
[1754520430218,80.57126945,168.44,168.43,10.29955742]
[1754520430429,80.57126945,168.44,168.43,28.14024042]
[1754520432935,19.29069598,168.44,168.43,28.14024042]
[1754520433135,0.03,168.45,168.43,28.14024042]
[1754520433331,0.03,168.45,168.44,45.48237284]
[1754520434229,0.03,168.45,168.44,47.86112984]
[1754520435731,0.03,168.45,168.44,50.4448818]
[1754520436719,0.03,168.45,168.44,50.72920494]
[1754520437025,0.03,168.45,168.44,51.41920494]
[1754520437335,0.03,168.45,168.44,53.79796194]
[1754520438517,0.03,168.46,168.45,0.28432314]
[1754520438834,0.03,168.46,168.45,4.36237284]
[1754520439426,0.03,168.46,168.45,6.74098884]
[1754520440139,0.03,168.46,168.45,6.76098884]
[1754520440328,0.03,168.46,168.45,12.6974685]
[1754520441045,0.03,168.46,168.45,12.7418265]
[1754520446046,0.03,168.46,168.45,12.6974685]
[1754520449332,0.03,168.46,168.45,11.9874685]
[1754520450752,0.03,168.46,168.45,12.6974685]
[1754520453749,0.03,168.46,168.45,11.9874685]
[1754520454631,0.03,168.46,168.45,12.6974685]
[1754520455445,0.59,168.48,168.46,0.014355]
[1754520455639,3.99540331,168.47,168.46,3.68672784]
[1754520455833,3.99540331,168.47,168.46,9.62285511]
[1754520461561,3.99540331,168.47,168.46,9.33853197]
[1754520461748,3.99540331,168.47,168.46,10.04853197]
[1754520463871,3.99540331,168.47,168.46,9.33853197]
[1754520464266,3.99540331,168.47,168.46,5.95048227]
[1754520465649,3.99540331,168.47,168.46,10.04853197]
[1754520466456,0.03,168.49,168.46,81.39938885]
[1754520466660,0.03,168.49,168.48,3.67237284]
[1754520466862,0.03,168.49,168.48,44.79237284]
[1754520467259,0.03,168.49,168.48,63.33775284]
[1754520467460,0.03,168.51,168.49,15.39053871]
[1754520467656,0.03,168.51,168.5,9.3227678]
[1754520467862,0.03,168.51,168.5,51.1527678]
[1754520468064,0.03,168.51,168.5,53.5305348]
[1754520471884,0.03,168.51,168.5,53.67269637]
[1754520472063,1e-08,168.51,168.5,68.92107351]
[1754520473977,1e-08,168.51,168.5,94.92107351]
[1754520482191,1e-08,168.51,168.5,94.21107351]
[1754520485803,1e-08,168.51,168.5,90.82302381]
[1754520485973,1e-08,168.51,168.5,94.21107351]
[1754520486487,1e-08,168.51,168.5,94.91107351]
[1754520496201,1e-08,168.51,168.5,91.52302381]
[1754520496384,1e-08,168.51,168.5,94.91107351]
[1754520496698,1e-08,168.53,168.52,26.0]
[1754520496884,1e-08,168.53,168.52,70.4880497]
[1754520497084,1e-08,168.53,168.52,71.1880497]
[1754520497284,1e-08,168.53,168.52,73.5655347]
[1754520498300,1e-08,168.53,168.52,79.49954846]
[1754520500710,0.03,168.56,168.53,15.39053871]
[1754520501010,0.56,168.55,168.54,41.38432314]
[1754520501581,0.59,168.56,168.54,41.38432314]
[1754520502384,0.59,168.56,168.55,5.93295757]
[1754520502682,0.03,168.56,168.55,5.93295757]
[1754520502904,0.59,168.56,168.55,5.93295757]
[1754520505389,0.03,168.56,168.55,5.93295757]
[1754520508211,0.03,168.56,168.55,9.97100727]
[1754520509087,0.03,168.56,168.55,10.25533041]
[1754520509503,0.03,168.56,168.55,6.86728071]
[1754520509684,0.03,168.56,168.55,10.25533041]
[1754520510191,0.03,168.56,168.55,6.86728071]
[1754520510381,0.03,168.56,168.55,10.25533041]
[1754520511519,4.03124403,168.56,168.55,10.25533041]
[1754520520253,4.59124403,168.56,168.55,5.93295757]
[1754520520632,4.59124403,168.56,168.55,5.99295757]
[1754520521535,4.03124403,168.56,168.55,5.99295757]
[1754520524757,4.03124403,168.56,168.55,0.06]
[1754520535351,4.59124403,168.56,168.55,0.06]
[1754520537891,7.97929373,168.56,168.55,0.06]
[1754520540175,49.07929373,168.56,168.55,0.06]
[1754520540674,55.01189933,168.56,168.55,0.06]
[1754520544563,60.01676224,168.56,168.55,0.06]
[1754520545288,55.01189933,168.56,168.55,0.06]
[1754520556883,9.96384963,168.56,168.55,0.06]
[1754520557194,54.45189933,168.56,168.55,0.73]
[1754520557601,39.35189933,168.56,168.55,0.73]
[1754520557901,80.45189933,168.56,168.55,0.73]
[1754520559876,55.01189933,168.56,168.55,0.06]
[1754520560301,54.45189933,168.56,168.55,0.06]
[1754520572612,54.44387155,168.56,168.55,0.06]
[1754520573917,29.3880497,168.54,168.53,0.06]
[1754520574088,74.48126595,168.54,168.53,0.06]
[1754520574288,75.04126595,168.54,168.53,0.06]
[1754520574488,90.14748152,168.54,168.5,0.06]
[1754520574712,3.3880497,168.51,168.5,0.75]
[1754520574917,44.4880497,168.51,168.5,0.75]
[1754520575501,50.42241561,168.51,168.5,0.75]
[1754520578415,50.42241561,168.51,168.5,0.06]
[1754520578724,76.42241561,168.51,168.5,0.06]
[1754520578909,73.03436591,168.51,168.5,0.06]
[1754520579109,76.42241561,168.51,168.5,0.06]
[1754520581918,76.42241561,168.51,168.5,0.75]
[1754520583324,76.42241561,168.51,168.5,0.06]
[1754520584311,76.42241561,168.51,168.5,0.75]
[1754520586124,76.42241561,168.51,168.5,0.06]
[1754520586506,76.42241561,168.51,168.5,0.75]
[1754520589715,76.42241561,168.51,168.5,0.06]
[1754520590237,80.41852464,168.51,168.5,0.06]
[1754520590613,80.41852464,168.51,168.5,0.78]
[1754520591727,80.41852464,168.51,168.5,0.06]
[1754520594648,80.41852464,168.51,168.5,0.78]
[1754520607651,80.41852464,168.51,168.5,0.06]
[1754520608451,80.97852464,168.51,168.5,0.06]
[1754520609056,80.41852464,168.51,168.5,0.06]
[1754520610237,54.41852464,168.51,168.5,0.06]
[1754520612973,88.6320753,168.51,168.5,0.06]
[1754520613147,88.6320753,168.51,168.49,0.06]
[1754520613148,21.04093367,168.5,168.49,0.06]
[1754520613461,50.48152045,168.5,168.49,0.06]
[1754520613853,52.86084445,168.5,168.49,0.06]
[1754520618755,52.30084445,168.5,168.49,0.06]
[1754520624658,49.92152045,168.5,168.49,0.74]
[1754520627273,31.42725518,168.5,168.49,0.74]
[1754520627478,38.38620893,168.5,168.49,0.74]
[1754520627775,18.32092703,168.5,168.49,0.74]
[1754520634188,18.32092703,168.5,168.49,0.06]
[1754520634665,18.88092703,168.5,168.49,0.06]
[1754520635563,18.32092703,168.5,168.49,0.06]
[1754520639883,13.31887683,168.5,168.49,0.06]
[1754520641583,13.87887683,168.5,168.49,0.06]
[1754520642463,13.87887683,168.5,168.48,0.06]
[1754520642652,48.50415873,168.49,168.48,0.06]
[1754520643474,48.50415873,168.49,168.48,0.74]
[1754520643885,48.50415873,168.49,168.48,0.06]
[1754520644571,54.43922906,168.49,168.48,0.06]
[1754520648170,54.43922906,168.49,168.48,0.74]
[1754520648362,54.43922906,168.49,168.48,0.06]
[1754520650890,54.43922906,168.49,168.48,0.77]
[1754520654781,59.4401678,168.49,168.48,0.77]
[1754520659791,53.50509747,168.49,168.48,0.77]
[1754520660175,59.4401678,168.49,168.48,0.77]
[1754520662005,53.50509747,168.49,168.48,0.77]
[1754520662212,50.11704777,168.49,168.48,0.77]
[1754520662405,45.11610903,168.49,168.48,0.77]
[1754520662901,45.12449519,168.49,168.48,0.77]
[1754520663401,48.51254489,168.49,168.48,0.77]
[1754520667822,45.12449519,168.49,168.48,0.77]
[1754520668019,48.51254489,168.49,168.48,0.77]
[1754520669313,45.12449519,168.49,168.48,0.77]
[1754520669612,4.03449519,168.49,168.48,0.77]
[1754520669816,4.03449519,168.49,168.48,6.7054226]
[1754520670304,4.03449519,168.49,168.48,15.1290913]
[1754520677808,4.03449519,168.49,168.48,11.7410416]
[1754520678009,4.03449519,168.49,168.48,15.1290913]
[1754520678319,4.03449519,168.49,168.48,30.51963001]
[1754520678502,0.03,168.49,168.48,30.51963001]
[1754520691222,0.03,168.5,168.49,15.39053871]
[1754520691427,0.03,168.5,168.49,59.85858841]
[1754520691934,0.03,168.5,168.49,60.52858841]
[1754520692310,0.03,168.5,168.49,62.90635641]
[1754520693219,0.03,168.5,168.49,44.41209114]
[1754520693420,0.59,168.5,168.49,2.377768]
[1754520693631,0.59,168.5,168.48,0.06]
[1754520694024,4.57549579,168.5,168.48,0.06]
[1754520698362,4.57936779,168.5,168.48,0.06]
[1754520699729,4.57936779,168.5,168.48,3.4480497]
[1754520700037,4.57936779,168.5,168.48,0.06]
[1754520700248,4.57936779,168.5,168.48,3.4480497]
[1754520700459,3.98936779,168.49,168.48,3.4480497]
[1754520701253,3.98936779,168.49,168.48,10.0534723]
[1754520701447,0.03,168.5,168.48,10.33779544]
[1754520701641,0.03,168.5,168.49,4.0580497]
[1754520703067,0.03,168.5,168.49,9.99312003]
[1754520704346,4.0230002,168.5,168.49,9.99312003]
[1754520704679,4.0230002,168.5,168.49,9.32312003]
[1754520704971,4.0230002,168.5,168.49,9.99312003]
[1754520712793,4.0230002,168.5,168.49,10.05312003]
[1754520715671,4.0230002,168.5,168.49,9.38312003]
[1754520715985,4.0230002,168.5,168.49,5.99507033]
[1754520720255,4.5830002,168.5,168.49,0.06]
[1754520723882,4.0230002,168.5,168.49,0.06]
[1754520725071,4.0230002,168.5,168.49,0.78]
[1754520725271,4.0230002,168.5,168.49,0.06]
[1754520737392,9.00970994,168.5,168.49,0.78]
[1754520738704,9.00970994,168.5,168.49,0.06]
[1754520744372,4.0230002,168.5,168.49,0.06]
[1754520744576,4.0230002,168.5,168.49,0.78]
[1754520745583,4.0230002,168.5,168.49,6.71507033]
[1754520746392,4.0230002,168.5,168.49,10.10312003]
[1754520750502,4.0230002,168.5,168.49,6.71507033]
[1754520752308,4.0230002,168.5,168.49,10.10312003]
[1754520752500,4.0230002,168.5,168.49,10.38744317]
[1754520753807,4.0230002,168.5,168.49,25.49365874]
[1754520756108,0.03,168.5,168.49,25.49365874]
[1754520760822,0.03,168.5,168.49,27.87128474]
[1754520761204,0.03,168.5,168.49,25.49365874]
[1754520761606,0.03,168.5,168.49,66.57365874]
[1754520766503,0.03,168.51,168.5,15.39053871]
[1754520766705,0.03,168.51,168.5,19.49858841]
[1754520767708,0.03,168.52,168.5,19.49858841]
[1754520768011,0.03,168.52,168.51,60.57858841]
[1754520768914,0.03,168.52,168.51,66.51295432]
[1754520784548,0.03,168.52,168.51,70.53288632]
[1754520788145,0.03,168.54,168.52,15.39053871]
[1754520788329,0.03,168.55,168.54,41.10621557]
[1754520788524,0.03,168.55,168.54,44.77858841]
[1754520788850,0.03,168.55,168.54,47.82565041]
[1754520789035,1e-08,168.55,168.54,21.82565041]
[1754520790244,1e-08,168.55,168.54,53.75896001]
[1754520798850,1e-08,168.55,168.54,27.75896001]
[1754520803540,0.03,168.57,168.55,0.28432314]
[1754520803858,0.03,168.57,168.56,45.39237284]
[1754520804264,0.03,168.57,168.56,47.76900984]
[1754520804560,0.03,168.57,168.56,50.31356574]
[1754520804763,0.03,168.57,168.56,53.04161544]
[1754520805137,4.58309669,168.57,168.56,5.9326056]
[1754520806465,4.58309669,168.57,168.56,9.3206553]
[1754520808263,4.58309669,168.57,168.56,5.9326056]
[1754520813974,4.02309669,168.57,168.56,5.9326056]
[1754520819247,4.02309669,168.57,168.56,6.5926056]
[1754520819652,4.02309669,168.57,168.56,5.9326056]
[1754520822679,4.02309669,168.57,168.56,10.26497844]
[1754520825760,4.02309669,168.57,168.56,51.32497844]
[1754520830272,4.02309669,168.57,168.56,66.43119401]
[1754520830790,4.02309669,168.57,168.56,84.25703501]
[1754520839394,0.03,168.57,168.56,84.25703501]
[1754520841569,4.02738609,168.57,168.56,84.25703501]
[1754520842274,0.03,168.57,168.56,84.25703501]
[1754520843176,0.03,168.57,168.56,84.31703501]
[1754520844584,0.03,168.57,168.56,66.49119401]
[1754520845075,0.03,168.57,168.56,63.10314431]
[1754520845277,4.02670296,168.57,168.56,62.44314431]
[1754520845484,4.58670296,168.57,168.56,65.83119401]
[1754520845695,4.02670296,168.57,168.56,65.83119401]
[1754520846071,4.02670296,168.57,168.56,66.55119401]
[1754520846697,4.02670296,168.57,168.56,63.16314431]
[1754520846891,4.02670296,168.57,168.56,66.55119401]
[1754520849916,4.02670296,168.57,168.56,51.44497844]
[1754520850202,4.02670296,168.57,168.56,50.70497844]
[1754520853784,4.02670296,168.57,168.56,6.27692874]
[1754520857692,4.02670296,168.57,168.56,10.38497844]
[1754520858822,4.02670296,168.57,168.56,6.99692874]
[1754520859021,4.02670296,168.57,168.56,10.38497844]
[1754520859718,0.03,168.57,168.56,10.38497844]
[1754520860516,4.02897614,168.57,168.56,10.38497844]
[1754520862321,4.02897614,168.57,168.56,6.99692874]
[1754520862619,4.02897614,168.57,168.56,10.38497844]
[1754520870131,0.03,168.57,168.56,10.38497844]
[1754520879239,0.03,168.57,168.56,25.49119401]
[1754520883826,4.02959998,168.57,168.56,25.49119401]
[1754520884359,4.02959998,168.57,168.56,6.27692874]
[1754520884519,4.58959998,168.57,168.56,6.27692874]
[1754520885944,4.02959998,168.57,168.56,6.27692874]
[1754520889659,4.02959998,168.57,168.56,9.66497844]
[1754520891928,4.02959998,168.57,168.56,6.27692874]
[1754520892247,4.02959998,168.57,168.56,9.66497844]
[1754520894075,4.02959998,168.57,168.56,10.38497844]
[1754520901541,4.02959998,168.57,168.56,51.42497844]
[1754520904444,4.02959998,168.57,168.56,66.53119401]
[1754520908772,0.03,168.57,168.56,66.53119401]
[1754520911868,0.03,168.57,168.56,68.90783201]
[1754520922572,0.03,168.58,168.57,15.39053871]
[1754520922892,0.03,168.58,168.57,19.44858841]
[1754520923789,0.03,168.58,168.57,25.38084207]
[1754520945107,0.1,168.59,168.58,18.77858841]
[1754520945306,4.65714405,168.59,168.58,59.79858841]
[1754520945504,4.65714405,168.59,168.58,18.77858841]
[1754520945708,4.65714405,168.59,168.58,59.79858841]
[1754520945910,4.09714405,168.59,168.58,59.79858841]
[1754520946308,4.09714405,168.59,168.58,65.73049017]
[1754520948325,4.09714405,168.59,168.58,62.34244047]
[1754520948506,4.09714405,168.59,168.58,65.73049017]
[1754520949992,4.09714405,168.59,168.58,62.34244047]
[1754520952534,4.09714405,168.59,168.58,65.73049017]
[1754520956220,4.09714405,168.59,168.58,66.38049017]
[1754520958605,4.09714405,168.59,168.58,62.34244047]
[1754520958809,4.09714405,168.59,168.58,65.73049017]
[1754520959026,4.09714405,168.59,168.58,66.38049017]
[1754520965635,4.09714405,168.59,168.58,70.47763417]
[1754520970743,4.09714405,168.59,168.58,70.53763417]
[1754520974647,4.09714405,168.59,168.58,69.88763417]
[1754520975051,4.09714405,168.59,168.58,70.53763417]
[1754520980067,4.09714405,168.59,168.58,67.14958447]
[1754520982537,4.09714405,168.59,168.58,70.53763417]
[1754520984056,4.09714405,168.59,168.58,10.3733689]
[1754520984359,4.09714405,168.59,168.58,54.7814186]
[1754520989666,4.09714405,168.59,168.58,55.5014186]
[1754520989862,4.09714405,168.59,168.58,52.1133689]
[1754520990045,4.09714405,168.59,168.58,55.5014186]
[1754520992966,4.09714405,168.59,168.58,14.4814186]
[1754520993169,4.09714405,168.59,168.58,55.5014186]
[1754521002775,4.09714405,168.59,168.58,70.60763417]
[1754521002979,0.1,168.59,168.58,70.60763417]
[1754521061946,0.03,168.6,168.59,15.39053871]
[1754521062140,0.03,168.6,168.59,18.77858841]
[1754521062330,0.03,168.6,168.59,25.40013832]
[1754521062525,0.03,168.6,168.59,27.77621132]
[1754521072664,0.03,168.6,168.59,68.77621132]
[1754521077440,4.71688158,168.66,168.62,3.3880497]
[1754521077644,4.00388371,168.65,168.62,44.3880497]
[1754521077842,4.00388371,168.64,168.62,44.3880497]
[1754521078042,4.00388371,168.63,168.62,62.49291984]
[1754521078467,4.00388371,168.63,168.62,68.42341444]
[1754521086491,4.00388371,168.63,168.62,50.60286744]
[1754521090295,4.00388371,168.63,168.62,51.26286744]
[1754521096024,4.00388371,168.63,168.62,47.21481774]
[1754521096683,4.00388371,168.63,168.62,47.87481774]
[1754521097379,4.00388371,168.63,168.62,51.26286744]
[1754521099602,4.00388371,168.63,168.62,51.32286744]
[1754521099905,4.00388371,168.63,168.62,47.93481774]
[1754521106815,4.00388371,168.63,168.62,51.32286744]
[1754521116228,4.00388371,168.63,168.62,47.93481774]
[1754521116801,4.00388371,168.63,168.62,46.9904946]
[1754521117527,4.00388371,168.63,168.62,47.7004946]
[1754521123638,4.00388371,168.63,168.62,41.77]
[1754521126550,4.00388371,168.63,168.62,47.7004946]
[1754521127930,4.00388371,168.63,168.62,46.9904946]
[1754521128534,4.00388371,168.63,168.62,47.7004946]
[1754521140462,4.00388371,168.63,168.62,41.77]
[1754521141467,4.00388371,168.63,168.62,0.77]
[1754521146356,4.00388371,168.63,168.62,6.7004946]
[1754521146780,4.00388371,168.63,168.62,0.77]
[1754521161669,4.00388371,168.63,168.62,0.06]
[1754521163259,4.00388371,168.63,168.62,0.74]
[1754521179691,4.00388371,168.63,168.62,0.06]
[1754521179891,9.00717698,168.63,168.62,0.74]
[1754521181699,4.00388371,168.63,168.62,0.74]
[1754521199709,4.00388371,168.63,168.62,6.6704946]
[1754521202908,4.00388371,168.63,168.62,0.74]
[1754521203216,4.00388371,168.63,168.62,0.06]
[1754521203587,9.00717698,168.63,168.62,0.06]
[1754521204918,9.00717698,168.63,168.62,0.73]
[1754521205418,9.00717698,168.63,168.62,6.6604946]
[1754521205589,4.00388371,168.63,168.62,0.73]
[1754521206720,9.00717698,168.63,168.62,0.73]
[1754521206921,9.00717698,168.63,168.62,0.06]
[1754521207785,9.00717698,168.63,168.62,0.73]
[1754521208323,9.00717698,168.63,168.62,0.06]
[1754521208988,9.00717698,168.63,168.62,0.73]
[1754521209985,18.32536959,168.63,168.62,0.06]
[1754521210207,13.32207632,168.63,168.6,0.06]
[1754521210411,5.00486427,168.61,168.6,0.06]
[1754521210600,9.00874798,168.61,168.6,0.06]
[1754521210798,4.00388371,168.61,168.6,6.6611981]
[1754521211801,4.00388371,168.61,168.6,0.73]
[1754521215123,4.00388371,168.61,168.6,6.6611981]
[1754521218942,4.00073041,168.61,168.6,6.6611981]
[1754521219156,4.00073041,168.61,168.6,0.73]
[1754521219632,149.90073041,168.61,168.6,0.73]
[1754521224221,149.90073041,168.61,168.6,0.06]
[1754521226029,149.90073041,168.61,168.6,0.74]
[1754521231237,149.90073041,168.61,168.6,6.6711981]
[1754521239025,149.90073041,168.61,168.6,10.0592478]
[1754521239846,149.90073041,168.61,168.6,10.34357094]
[1754521257758,149.90073041,168.61,168.6,25.44978651]
[1754521257953,4.00073041,168.61,168.6,25.44978651]
[1754521258163,0.03,168.62,168.61,15.39053871]
[1754521258380,0.03,168.64,168.63,18.49426527]
[1754521258688,0.03,168.64,168.62,4.1080497]
[1754521258885,0.03,168.64,168.6,5.9911981]
[1754521259053,0.03,168.64,168.6,10.7119281]
[1754521259258,0.03,168.64,168.6,6.7111981]
[1754521259571,0.03,168.64,168.6,10.0992478]
[1754521260180,0.03,168.64,168.61,0.72]
[1754521260393,0.03,168.64,168.61,1.00432314]
[1754521260596,0.03,168.64,168.62,0.72]
[1754521262297,0.03,168.64,168.63,5.93014291]
[1754521262464,0.03,168.64,168.63,24.70873132]
[1754521262669,0.03,168.64,168.63,25.42873132]
[1754521273506,0.03,168.64,168.63,6.21446605]
[1754521275100,0.03,168.64,168.63,6.93446605]
[1754521275411,0.03,168.64,168.63,10.32251575]
[1754521282117,4.02353556,168.64,168.63,10.32251575]
[1754521283338,0.03,168.64,168.63,10.32251575]
[1754521284123,4.0238064,168.64,168.63,10.32251575]
[1754521292352,4.0238064,168.64,168.63,6.93446605]
[1754521292840,4.0238064,168.64,168.63,10.32251575]
[1754521297154,4.0238064,168.64,168.63,6.93446605]
[1754521297352,4.0238064,168.64,168.62,0.06]
[1754521297541,3.9938064,168.63,168.62,0.06]
[1754521302342,3.9938064,168.63,168.62,0.76]
[1754521303553,3.9938064,168.63,168.62,0.06]
[1754521305548,3.9938064,168.63,168.62,0.76]
[1754521307550,3.9938064,168.63,168.62,0.06]
[1754521317759,13.31199901,168.63,168.62,0.06]
[1754521318653,18.31291202,168.63,168.62,0.06]
[1754521322219,12.38276911,168.63,168.62,0.06]
[1754521322883,8.99471941,168.63,168.62,0.06]
[1754521323090,3.9938064,168.63,168.62,0.71]
[1754521329188,3.9938064,168.63,168.62,6.6404946]
[1754521336598,4.0238064,168.63,168.62,6.6404946]
[1754521341324,4.0238064,168.63,168.62,0.71]
[1754521342117,7.4118561,168.63,168.62,0.06]
[1754521342318,9.02471941,168.63,168.62,0.06]
[1754521342489,4.0238064,168.63,168.61,0.06]
[1754521342692,53.50605252,168.62,168.61,0.06]
[1754521345835,50.11800282,168.62,168.61,0.06]
[1754521346038,53.50605252,168.62,168.61,0.06]
[1754521347336,59.43654712,168.62,168.61,0.06]
[1754521348135,54.4323507,168.62,168.61,0.06]
[1754521349322,26.0,168.6,168.59,0.06]
[1754521349516,74.5218561,168.6,168.59,0.06]
[1754521350320,74.5218561,168.6,168.59,0.76]
[1754521350522,79.52074367,168.6,168.59,0.76]
[1754521352924,79.52074367,168.6,168.59,0.06]
[1754521355337,79.52074367,168.6,168.59,0.76]
[1754521355634,74.5218561,168.6,168.59,0.76]
[1754521357943,74.5518561,168.6,168.59,0.76]
[1754521359747,80.4830542,168.6,168.59,0.06]
[1754521360135,74.5518561,168.6,168.59,0.06]
[1754521366448,80.4830542,168.6,168.59,0.06]
[1754521370758,74.5518561,168.6,168.59,0.06]
[1754521371268,80.4830542,168.6,168.59,0.06]
[1754521374172,80.48110049,168.6,168.59,0.06]
[1754521374465,74.54990239,168.6,168.59,0.75]
[1754521377772,80.48110049,168.6,168.59,0.06]
[1754521380351,74.54990239,168.6,168.59,0.75]
[1754521385886,71.16185269,168.6,168.59,0.75]
[1754521386083,74.54990239,168.6,168.59,0.75]
[1754521387094,71.16185269,168.6,168.59,0.75]
[1754521387373,79.53971825,168.6,168.59,0.75]
[1754521390472,71.16185269,168.6,168.59,0.75]
[1754521390885,45.16185269,168.6,168.59,0.75]
[1754521391382,50.15166855,168.6,168.59,0.75]
[1754521392198,9.01166855,168.6,168.59,0.75]
[1754521392681,50.13166855,168.6,168.59,0.75]
[1754521395491,50.13166855,168.6,168.59,6.68154991]
[1754521396138,50.13166855,168.6,168.59,0.75]
[1754521403843,53.51971825,168.6,168.59,0.06]
[1754521404022,48.52990239,168.6,168.59,0.06]
[1754521404338,54.46110049,168.6,168.59,0.06]
[1754521405926,3.3880497,168.59,168.58,0.06]
[1754521406129,12.38303068,168.59,168.58,0.06]
[1754521408749,18.31458059,168.59,168.58,0.06]
[1754521409122,14.92653089,168.59,168.58,0.06]
[1754521409917,8.99498098,168.59,168.58,0.06]
[1754521412558,8.99498098,168.59,168.58,0.75]
[1754521417569,8.99498098,168.59,168.49,0.06]
[1754521417570,26.0,168.57,168.49,0.06]
[1754521417752,26.0,168.5,168.49,0.06]
[1754521418056,71.95185269,168.5,168.49,0.06]
[1754521418465,35.92657079,168.5,168.49,0.06]
[1754521418668,77.90657079,168.5,168.49,0.06]
[1754521418963,87.17456703,168.5,168.49,0.06]
[1754521419140,90.56261673,168.5,168.49,0.06]
[1754521419560,92.94165773,168.5,168.49,0.06]
[1754521420251,88.10634263,168.5,168.49,0.06]
[1754521421474,84.71829293,168.5,168.49,0.06]
[1754521421662,8.42453383,168.5,168.49,0.75]
[1754521422000,50.40453383,168.5,168.49,0.75]
[1754521422896,45.97185269,168.5,168.49,0.75]
[1754521423046,51.90657079,168.5,168.49,0.75]
[1754521428709,57.19635956,168.5,168.49,0.06]
[1754521431684,57.17256057,168.5,168.49,0.06]
[1754521432303,62.1326277,168.5,168.49,0.06]
[1754521432599,64.5116687,168.5,168.49,0.06]
[1754521432799,62.1326277,168.5,168.49,0.06]
[1754521433308,51.8827718,168.5,168.49,0.74]
[1754521433686,45.9480537,168.5,168.49,0.74]
[1754521434109,3.9680537,168.5,168.49,0.74]
[1754521434312,45.8880537,168.5,168.49,0.74]
[1754521434812,57.11256057,168.5,168.49,0.74]
[1754521435722,15.19256057,168.5,168.49,0.74]
[1754521436020,45.9080537,168.5,168.49,0.74]
[1754521439320,51.8427718,168.5,168.49,0.06]
[1754521442930,51.8427718,168.5,168.49,0.74]
[1754521443835,51.8427718,168.5,168.49,0.06]
[1754521444018,10.0,168.45,168.33,0.68]
[1754521444215,26.0,168.38,168.34,0.68]
[1754521444524,46.6480537,168.37,168.34,0.68]
[1754521444703,3.9680537,168.36,168.34,0.68]
[1754521444906,3.9680537,168.35,168.34,0.68]
[1754521445307,3.9680537,168.35,168.32,0.2]
[1754521445507,46.6424559,168.34,168.33,0.68]
[1754521451227,46.6424559,168.34,168.33,6.62071169]
[1754521451539,3.9624559,168.34,168.33,6.62071169]
[1754521454814,3.9624559,168.34,168.33,0.68]
[1754521457756,3.9624559,168.34,168.33,6.62071169]
[1754521458741,3.9624559,168.34,168.33,0.68]
[1754521460448,3.95176257,168.34,168.33,0.68]
[1754521460643,8.89146578,168.34,168.33,0.68]
[1754521462150,3.95176257,168.34,168.33,0.68]
[1754521462349,8.89662975,168.34,168.32,0.2]
[1754521462554,3.95176257,168.33,168.32,0.2]
[1754521464462,3.95176257,168.33,168.32,0.89]
[1754521466566,3.95176257,168.33,168.32,0.2]